bitfinex/quotes_BTCUSD_20240826
["timestamp","ask_amount","ask_price","bid_price","bid_amount"]
[1724678789734,0.00190751,63846.0,63845.0,2.00491576]
[1724678789938,0.00290751,63846.0,63845.0,2.01091576]
[1724678790145,0.00290751,63846.0,63845.0,2.05339701]
[1724678790353,0.00090861,63849.0,63848.0,1.493493]
[1724678790555,0.00090861,63849.0,63848.0,2.42049076]
[1724678791788,0.00190861,63849.0,63848.0,2.42649076]
[1724678792580,0.00190861,63849.0,63848.0,2.43349076]
[1724678792826,0.00290861,63849.0,63848.0,2.43349076]
[1724678806724,0.00190861,63849.0,63848.0,2.42749076]
[1724678806932,0.00290861,63849.0,63848.0,2.43449076]
[1724678809143,0.00190861,63849.0,63848.0,2.42749076]
[1724678809352,0.00190861,63849.0,63848.0,2.44149076]
[1724678815846,0.00190861,63849.0,63848.0,2.04534776]
[1724678816071,0.00190861,63849.0,63848.0,1.68677101]
[1724678817485,0.00190861,63849.0,63848.0,1.98254776]
[1724678817683,0.00190861,63849.0,63848.0,2.12214776]
[1724678818628,0.00190861,63849.0,63848.0,2.43539076]
[1724678818806,0.00190861,63849.0,63848.0,2.12214776]
[1724678820317,0.00190861,63849.0,63848.0,2.43539076]
[1724678820475,0.00190861,63849.0,63848.0,2.53339581]
[1724678822079,0.00190861,63849.0,63848.0,2.39459254]
[1724678822271,0.00190861,63849.0,63848.0,2.37022405]
[1724678823073,0.00190861,63849.0,63848.0,2.39459254]
[1724678823480,0.00190861,63849.0,63848.0,2.41672411]
[1724678823662,0.00190861,63849.0,63848.0,2.39459349]
[1724678823859,0.00190861,63849.0,63848.0,2.44109355]
[1724678824065,0.00190861,63849.0,63848.0,2.73764257]
[1724678824272,0.00190861,63849.0,63848.0,2.66634101]
[1724678824521,0.00190861,63849.0,63848.0,2.75939028]
[1724678824933,0.00190861,63849.0,63848.0,2.77638114]
[1724678825085,0.00190861,63849.0,63848.0,2.69795048]
[1724678825698,0.00190861,63849.0,63848.0,3.10424275]
[1724678825926,0.00190861,63849.0,63848.0,2.69795048]
[1724678826185,0.00190861,63849.0,63848.0,2.40183352]
[1724678826450,0.00190861,63849.0,63848.0,2.71507652]
[1724678826596,0.00190861,63849.0,63848.0,3.08308287]
[1724678826821,0.00190861,63849.0,63848.0,3.106349]
[1724678827022,0.00190861,63849.0,63848.0,2.76985453]
[1724678827226,0.00190861,63849.0,63848.0,2.793106]
[1724678827457,0.00190861,63849.0,63848.0,2.70002101]
[1724678828008,0.00190861,63849.0,63848.0,3.01326401]
[1724678828221,0.00190861,63849.0,63848.0,3.17613821]
[1724678828635,0.00190861,63849.0,63848.0,3.17376591]
[1724678829275,0.00151705,63849.0,63848.0,3.17376591]
[1724678829907,0.00151705,63849.0,63848.0,2.86052291]
[1724678830574,0.00151705,63849.0,63848.0,3.17376591]
[1724678830781,5e-08,63849.0,63848.0,3.17376591]
[1724678831245,0.46876099,63864.0,63863.0,1.68074419]
[1724678831466,0.46876099,63864.0,63863.0,2.279665]
[1724678831683,0.00367961,63864.0,63863.0,2.279665]
[1724678831901,0.00090751,63867.0,63866.0,1.409197]
[1724678832102,0.00090751,63867.0,63866.0,1.61998448]
[1724678832319,0.00090751,63867.0,63866.0,1.66663401]
[1724678832522,0.00090751,63867.0,63866.0,1.98275429]
[1724678832729,0.00090751,63867.0,63866.0,1.91278057]
[1724678833154,0.00090751,63867.0,63866.0,1.68998444]
[1724678833326,0.00190751,63867.0,63866.0,1.99713969]
[1724678833739,0.00190751,63867.0,63866.0,2.08326711]
[1724678833937,0.00190751,63867.0,63866.0,2.39687181]
[1724678834414,0.00190751,63867.0,63866.0,2.30236234]
[1724678834618,0.00190751,63867.0,63866.0,2.31933792]
[1724678834763,0.00190751,63867.0,63866.0,2.34794318]
[1724678835293,0.00190751,63867.0,63866.0,2.80688616]
[1724678835505,0.0833,63882.0,63875.0,2.13368919]
[1724678835652,0.1434,63885.0,63875.0,2.73696835]
[1724678835856,0.0833,63885.0,63875.0,2.8349321]
[1724678836113,0.0833,63888.0,63875.0,2.8349321]
[1724678836308,0.0833,63888.0,63875.0,3.1480431]
[1724678837254,0.0833,63888.0,63875.0,3.05007935]
[1724678837692,0.0833,63888.0,63875.0,2.4794772]
[1724678838094,0.0833,63888.0,63875.0,2.49263795]
[1724678838265,0.0768,63891.0,63875.0,2.59491765]
[1724678838667,0.0768,63891.0,63875.0,2.60891765]
[1724678838867,0.0768,63891.0,63875.0,2.59491765]
[1724678839074,0.0768,63891.0,63875.0,2.59491792]
[1724678839280,0.0768,63891.0,63875.0,2.49263822]
[1724678839452,0.0768,63891.0,63875.0,2.58561734]
[1724678839652,0.0768,63891.0,63875.0,2.59961734]
[1724678839855,0.46876099,63902.0,63875.0,2.59961734]
[1724678839856,0.0806,63895.0,63883.0,1.722896]
[1724678840058,0.08150861,63899.0,63898.0,0.156499]
[1724678840238,0.08150861,63899.0,63898.0,1.26864659]
[1724678840438,0.08150861,63899.0,63898.0,1.58164459]
[1724678840439,0.00765155,63899.0,63898.0,1.58164459]
[1724678840656,0.00090861,63899.0,63898.0,1.58164459]
[1724678840858,0.00090861,63899.0,63898.0,1.73031967]
[1724678841085,0.00090861,63899.0,63898.0,2.06731767]
[1724678841304,0.00090861,63899.0,63898.0,2.08190044]
[1724678841965,0.00090861,63899.0,63898.0,2.10883288]
[1724678842171,0.00090861,63899.0,63898.0,2.09483288]
[1724678842394,0.00090861,63899.0,63898.0,2.17293288]
[1724678842622,0.00090861,63899.0,63898.0,2.1869023]
[1724678842843,0.00090861,63899.0,63898.0,2.2009023]
[1724678843058,0.00090861,63899.0,63898.0,2.15222722]
[1724678843293,0.00090861,63899.0,63898.0,2.04554445]
[1724678843536,0.00090861,63899.0,63898.0,2.03154445]
[1724678843801,0.00090861,63899.0,63898.0,1.73254645]
[1724678844042,0.00090861,63899.0,63898.0,1.73154645]
[1724678844293,0.00090861,63899.0,63898.0,1.71854645]
[1724678844514,0.00090861,63899.0,63898.0,1.71861401]
[1724678844716,0.00090861,63899.0,63898.0,1.71961401]
[1724678845362,0.00090861,63899.0,63898.0,1.73361401]
[1724678845803,0.00090861,63899.0,63898.0,1.71961401]
[1724678845962,0.00090861,63899.0,63898.0,1.73361401]
[1724678846518,0.00090861,63899.0,63898.0,1.71961401]
[1724678846917,0.00090861,63899.0,63898.0,1.73361401]
[1724678847341,0.00090861,63899.0,63898.0,1.71961401]
[1724678847743,0.00090861,63899.0,63898.0,1.73361401]
[1724678848749,0.00090861,63899.0,63898.0,2.12701201]
[1724678849034,0.00090861,63899.0,63898.0,1.73361401]
[1724678851650,0.00090861,63899.0,63898.0,1.73261401]
[1724678851864,0.07840861,63899.0,63898.0,1.73261401]
[1724678852054,0.07840861,63899.0,63898.0,1.73361401]
[1724678852466,0.07840861,63899.0,63898.0,1.73261401]
[1724678852801,0.14300861,63899.0,63898.0,1.73261401]
[1724678854121,0.14300861,63899.0,63898.0,1.73260628]
[1724678854333,0.14300861,63899.0,63898.0,1.08361028]
[1724678854600,0.14300861,63899.0,63898.0,1.06667301]
[1724678854805,0.14300861,63899.0,63898.0,1.37967101]
[1724678855644,0.14300861,63899.0,63898.0,1.38867101]
[1724678855855,0.14300861,63899.0,63898.0,1.37467101]
[1724678856064,0.14300861,63899.0,63898.0,1.38367101]
[1724678856691,0.14300861,63899.0,63898.0,1.38867101]
[1724678857126,0.14300861,63899.0,63898.0,1.40267101]
[1724678857733,0.14300861,63899.0,63898.0,1.41961094]
[1724678858942,0.07840861,63899.0,63898.0,1.73260894]
[1724678859359,0.00090861,63899.0,63898.0,2.04660694]
[1724678859913,0.00090861,63899.0,63898.0,2.04660098]
[1724678860321,0.00090861,63899.0,63898.0,2.06116855]
[1724678860529,0.00090861,63899.0,63898.0,2.04660051]
[1724678860736,0.00090861,63899.0,63898.0,2.19866845]
[1724678861180,0.00090861,63899.0,63898.0,2.06116845]
[1724678862022,0.00090861,63899.0,63898.0,1.72017045]
[1724678862249,0.00090861,63899.0,63898.0,1.69560251]
[1724678862448,0.00090861,63899.0,63898.0,1.72417393]
[1724678862618,0.00090861,63899.0,63898.0,1.70960251]
[1724678863396,0.00090861,63899.0,63898.0,1.72417532]
[1724678863595,0.00090861,63899.0,63898.0,1.74717532]
[1724678863805,0.00090861,63899.0,63898.0,1.74817532]
[1724678864005,0.00090861,63899.0,63898.0,2.06117332]
[1724678864426,0.00090861,63899.0,63898.0,2.24958384]
[1724678864622,0.00090861,63899.0,63898.0,2.08448384]
[1724678864825,0.00090861,63899.0,63898.0,2.08348384]
[1724678865032,0.00090861,63899.0,63898.0,2.06117332]
[1724678865262,0.00090861,63899.0,63898.0,2.06017332]
[1724678865528,0.00090861,63899.0,63898.0,2.08348762]
[1724678866450,0.00090861,63899.0,63898.0,2.08448762]
[1724678867190,0.00090861,63899.0,63898.0,2.08348762]
[1724678867421,0.00090861,63899.0,63898.0,2.02866701]
[1724678867654,0.00090861,63899.0,63898.0,2.08349122]
[1724678868032,0.00090861,63899.0,63898.0,1.77049322]
[1724678868233,0.00090861,63899.0,63898.0,1.7471785]
[1724678870038,0.00090861,63899.0,63898.0,1.7481785]
[1724678870218,0.00090861,63899.0,63898.0,1.77149322]
[1724678870431,0.00090861,63899.0,63898.0,1.7471785]
[1724678870636,0.08240861,63899.0,63898.0,1.73260745]
[1724678871210,0.08240861,63899.0,63898.0,1.74717975]
[1724678872649,0.08240861,63899.0,63898.0,1.74717937]
[1724678873613,0.00090861,63899.0,63898.0,1.74717937]
[1724678875470,0.00090861,63899.0,63898.0,1.71566901]
[1724678875679,0.00090861,63899.0,63898.0,1.73260472]
[1724678875879,0.00090861,63899.0,63898.0,1.74717457]
[1724678878881,0.00090861,63899.0,63898.0,1.74718696]
[1724678879983,0.00090861,63899.0,63898.0,1.72418696]
[1724678880604,0.08100861,63899.0,63898.0,1.72418696]
[1724678881224,0.08100861,63899.0,63898.0,1.74718696]
[1724678881442,0.08100861,63899.0,63898.0,1.73262898]
[1724678881652,0.08100861,63899.0,63898.0,1.74721693]
[1724678882066,0.08100861,63899.0,63898.0,1.79378987]
[1724678882264,0.08100861,63899.0,63898.0,1.74721693]
[1724678883259,0.08100861,63899.0,63898.0,1.79378987]
[1724678883638,0.08100861,63899.0,63898.0,1.74721693]
[1724678883863,0.08100861,63899.0,63898.0,1.79378987]
[1724678884247,0.08100861,63899.0,63898.0,1.74721693]
[1724678884498,0.08100861,63899.0,63898.0,1.77685941]
[1724678884676,0.08100861,63899.0,63898.0,1.79381898]
[1724678884901,0.08100861,63899.0,63898.0,1.74721748]
[1724678885101,0.08100861,63899.0,63898.0,2.097215]
[1724678885303,0.08100861,63899.0,63898.0,2.02777891]
[1724678885558,0.00090861,63899.0,63898.0,2.02777891]
[1724678885741,0.00090861,63899.0,63898.0,2.12670985]
[1724678886113,0.00090861,63899.0,63898.0,2.43970785]
[1724678886926,0.00090861,63899.0,63898.0,2.57948277]
[1724678887133,0.00090861,63899.0,63898.0,2.43970785]
[1724678887367,0.00090861,63899.0,63898.0,2.57947878]
[1724678887906,0.00090861,63899.0,63898.0,2.72115738]
[1724678888114,0.00907501,63907.0,63906.0,0.233379]
[1724678888319,0.00907501,63910.0,63906.0,0.233379]
[1724678888320,0.00907501,63910.0,63909.0,0.470416]
[1724678888525,0.00907501,63910.0,63909.0,2.0984403]
[1724678888699,0.00907501,63910.0,63909.0,2.55104911]
[1724678888929,0.0010164,63932.0,63909.0,2.55104911]
[1724678888930,0.0827,63926.0,63912.0,1.096255]
[1724678889133,0.0827,63926.0,63912.0,2.66075555]
[1724678889343,0.1445,63930.0,63912.0,3.13231649]
[1724678889550,0.1445,63930.0,63914.0,1.40914]
[1724678889757,0.1445,63930.0,63929.0,1.05359619]
[1724678889758,0.0827,63930.0,63929.0,1.05359619]
[1724678889964,0.0827,63930.0,63929.0,1.86699012]
[1724678890171,0.08965226,63930.0,63929.0,1.88999012]
[1724678890375,0.0827,63930.0,63929.0,1.88999012]
[1724678891006,0.0827,63930.0,63929.0,1.90299012]
[1724678891612,0.0010164,63932.0,63930.0,1.407789]
[1724678891814,0.0010164,63932.0,63930.0,1.61848893]
[1724678892016,0.0010164,63932.0,63930.0,1.61948893]
[1724678892218,0.0010164,63932.0,63930.0,1.71948893]
[1724678892821,0.0010164,63932.0,63930.0,1.70491171]
[1724678893027,0.0010164,63932.0,63930.0,1.71691171]
[1724678893459,0.0010164,63932.0,63930.0,1.40306971]
[1724678893656,0.0010164,63932.0,63930.0,1.41706971]
[1724678894599,0.08274161,63931.0,63930.0,1.41706971]
[1724678894912,0.08274161,63931.0,63930.0,1.43106971]
[1724678895104,0.08274161,63931.0,63930.0,1.40506971]
[1724678895322,0.14704161,63931.0,63930.0,1.09222771]
[1724678895518,0.14704161,63931.0,63930.0,1.06128301]
[1724678895728,0.14704161,63931.0,63930.0,1.07528301]
[1724678896061,0.15412665,63931.0,63930.0,1.07528301]
[1724678896469,0.14704161,63931.0,63930.0,1.08928301]
[1724678896664,0.14704161,63931.0,63930.0,1.07528301]
[1724678897513,0.14704161,63931.0,63930.0,1.08928301]
[1724678897890,0.14704161,63931.0,63930.0,0.98928301]
[1724678898525,0.14704161,63931.0,63930.0,1.30212501]
[1724678899204,0.14704161,63931.0,63930.0,0.98928301]
[1724678899582,0.14704161,63931.0,63930.0,1.30212501]
[1724678900730,0.08274161,63931.0,63930.0,1.30212501]
[1724678900849,0.00034161,63931.0,63930.0,1.30212501]
[1724678901266,0.00034161,63931.0,63930.0,1.60096701]
[1724678901469,0.00034161,63931.0,63930.0,1.58696701]
[1724678901670,0.00034161,63931.0,63930.0,1.60096701]
[1724678901869,0.00034161,63931.0,63930.0,1.61496701]
[1724678903205,0.00034161,63931.0,63930.0,1.58796701]
[1724678903405,0.00034161,63931.0,63930.0,1.70196701]
[1724678903608,0.00034161,63931.0,63930.0,1.71596701]
[1724678904171,0.00034161,63931.0,63930.0,1.70096701]
[1724678904633,0.00034161,63931.0,63930.0,1.71397835]
[1724678904832,0.00034161,63931.0,63930.0,1.70097835]
[1724678905047,0.00034161,63931.0,63930.0,1.72897835]
[1724678905265,0.14604161,63931.0,63930.0,1.71496701]
[1724678905478,0.14604161,63931.0,63930.0,1.37912501]
[1724678906334,0.14604161,63931.0,63930.0,1.35112501]
[1724678906516,0.14604161,63931.0,63930.0,1.37412501]
[1724678906726,0.14604161,63931.0,63930.0,1.40212501]
[1724678906853,0.14604161,63931.0,63930.0,1.38812501]
[1724678907059,0.14604161,63931.0,63930.0,1.37412501]
[1724678907304,0.14604161,63931.0,63930.0,1.23170401]
[1724678907705,0.14604161,63931.0,63930.0,1.38812501]
[1724678907915,0.14604161,63931.0,63930.0,1.37412501]
[1724678908144,0.00034161,63931.0,63930.0,1.9584462]
[1724678908330,0.00034161,63931.0,63930.0,1.9734462]
[1724678908505,0.00034161,63931.0,63930.0,1.9874462]
[1724678908832,0.00034161,63931.0,63930.0,1.99910901]
[1724678909633,0.00034161,63931.0,63930.0,1.98510901]
[1724678910164,0.00034161,63931.0,63930.0,1.99910901]
[1724678910314,0.00034161,63931.0,63930.0,1.98510901]
[1724678910757,0.00034161,63931.0,63930.0,1.9874462]
[1724678910951,0.00034161,63931.0,63930.0,2.31195019]
[1724678911123,0.00034161,63931.0,63930.0,1.99910819]
[1724678911669,0.00034161,63931.0,63930.0,2.01368576]
[1724678913420,0.00034161,63931.0,63930.0,2.32652776]
[1724678913859,0.00034161,63931.0,63930.0,2.01268576]
[1724678914060,0.00034161,63931.0,63930.0,1.99810876]
[1724678914260,0.00034161,63931.0,63930.0,2.01268696]
[1724678917611,0.00034161,63931.0,63930.0,1.9864462]
[1724678917813,0.00034161,63931.0,63930.0,2.01268295]
[1724678918330,0.00034161,63931.0,63930.0,2.01350795]
[1724678920359,0.06304161,63931.0,63930.0,2.01350795]
[1724678922700,0.00034161,63931.0,63930.0,2.01350795]
[1724678924064,0.00034161,63931.0,63930.0,1.74202876]
[1724678924264,0.14744161,63931.0,63930.0,1.74202876]
[1724678925489,0.14744161,63931.0,63930.0,1.42918676]
[1724678928289,0.14744161,63931.0,63930.0,1.42920016]
[1724678928716,0.14744161,63931.0,63930.0,1.31461674]
[1724678929189,0.14744161,63931.0,63930.0,1.32920073]
[1724678929590,0.14744161,63931.0,63930.0,1.31520073]
[1724678929788,0.14744161,63931.0,63930.0,1.32920073]
[1724678930271,0.14744161,63931.0,63930.0,1.31520073]
[1724678930476,0.14744161,63931.0,63930.0,1.32920073]
[1724678931494,0.14744161,63931.0,63930.0,1.31520073]
[1724678931910,0.14744161,63931.0,63930.0,1.32918981]
[1724678932127,0.14744161,63931.0,63930.0,1.32918983]
[1724678932739,0.14744161,63931.0,63930.0,1.31752672]
[1724678932955,0.14744161,63931.0,63930.0,1.32918805]
[1724678933155,0.14744161,63931.0,63930.0,1.31752672]
[1724678933763,0.08314161,63931.0,63930.0,1.31752672]
[1724678933965,0.00034161,63931.0,63930.0,2.47608729]
[1724678934170,0.00034161,63931.0,63930.0,2.50427775]
[1724678934549,0.00034161,63931.0,63930.0,2.81711975]
[1724678934754,0.00034161,63931.0,63930.0,2.80310512]
[1724678934963,0.00034161,63931.0,63930.0,2.78910512]
[1724678935135,0.00034161,63931.0,63930.0,2.80310512]
[1724678935565,0.00034161,63931.0,63930.0,2.80310526]
[1724678935793,0.00034161,63931.0,63930.0,2.81710526]
[1724678936399,0.00034161,63931.0,63930.0,2.78910526]
[1724678936829,0.00015335,63931.0,63930.0,2.78910526]
[1724678937033,0.00015335,63931.0,63930.0,2.80310526]
[1724678937774,0.00015335,63931.0,63930.0,2.81710526]
[1724678939949,0.0004,63939.0,63938.0,0.001]
[1724678940149,0.00907501,63945.0,63944.0,0.49176519]
[1724678940391,0.00907501,63945.0,63944.0,1.25055837]
[1724678940606,0.00907501,63945.0,63944.0,1.85851854]
[1724678940815,0.00907501,63945.0,63944.0,1.98248848]
[1724678941022,0.00907501,63945.0,63944.0,1.86625801]
[1724678941249,0.00907501,63945.0,63944.0,2.11542359]
[1724678941457,0.00907501,63945.0,63944.0,2.11642359]
[1724678941685,0.00907501,63945.0,63944.0,2.11502984]
[1724678941885,0.00907501,63945.0,63944.0,2.42780284]
[1724678942112,0.00907501,63945.0,63944.0,2.02343602]
[1724678942239,0.00907501,63945.0,63944.0,2.11636552]
[1724678942447,0.00907501,63945.0,63944.0,2.33620902]
[1724678942643,0.00907501,63945.0,63944.0,2.49220902]
[1724678943075,0.00907501,63945.0,63944.0,2.60836573]
[1724678943302,0.00907501,63945.0,63944.0,2.12933723]
[1724678943493,0.00907501,63945.0,63944.0,1.71465601]
[1724678943704,0.00907501,63945.0,63944.0,1.70065601]
[1724678944077,0.00907501,63945.0,63944.0,1.71465601]
[1724678945301,0.00907501,63945.0,63944.0,1.76108277]
[1724678945912,0.00907501,63945.0,63944.0,1.69165601]
[1724678945913,0.08647501,63945.0,63944.0,1.69165601]
[1724678946889,0.08647501,63945.0,63944.0,1.36488301]
[1724678947527,0.08647501,63945.0,63944.0,1.26488301]
[1724678947697,0.15167501,63945.0,63944.0,0.95211001]
[1724678948122,0.15167501,63945.0,63944.0,0.795932]
[1724678948443,0.15167501,63945.0,63944.0,0.809932]
[1724678949054,0.15167501,63945.0,63944.0,0.795932]
[1724678949437,0.15167501,63945.0,63944.0,0.818932]
[1724678949644,0.15167501,63945.0,63944.0,0.804932]
[1724678950216,0.15167501,63945.0,63944.0,0.817932]
[1724678950545,0.15167501,63945.0,63944.0,0.804932]
[1724678950717,0.0783,63943.0,63932.0,0.06507478]
[1724678950929,0.0783,63941.0,63935.0,0.312814]
[1724678951111,0.0752,63939.0,63936.0,0.156404]
[1724678951307,0.16030712,63940.0,63937.0,0.156403]
[1724678951308,0.0627,63938.0,63937.0,0.156403]
[1724678951514,0.1379,63938.0,63937.0,0.46921]
[1724678952146,0.14410557,63938.0,63937.0,0.46921]
[1724678952465,0.14410557,63938.0,63937.0,0.156403]
[1724678952665,0.1379,63938.0,63935.0,0.46922]
[1724678952851,0.1395,63937.0,63931.0,0.312836]
[1724678953051,0.1395,63937.0,63929.0,0.312846]
[1724678953052,0.0752,63936.0,63925.0,0.312864]
[1724678953252,0.00620586,63938.0,63929.0,0.312844]
[1724678953456,0.1456,63936.0,63932.0,0.166414]
[1724678953663,0.00620586,63938.0,63932.0,0.01]
[1724678953664,0.1456,63933.0,63932.0,0.01]
[1724678953862,0.1456,63933.0,63930.0,0.000825]
[1724678954061,0.082,63932.0,63931.0,0.156418]
[1724678954311,0.08837519,63932.0,63931.0,0.469255]
[1724678955510,0.1456,63932.0,63931.0,0.469255]
[1724678955710,0.1456,63932.0,63931.0,0.782092]
[1724678956066,0.1456,63932.0,63931.0,0.469255]
[1724678956266,0.1456,63932.0,63931.0,0.782092]
[1724678956406,0.1456,63932.0,63931.0,0.485255]
[1724678956605,0.1456,63932.0,63931.0,0.50219076]
[1724678956870,0.1456,63932.0,63931.0,0.49419076]
[1724678957005,0.1456,63932.0,63931.0,0.50419076]
[1724678957210,0.1456,63932.0,63931.0,0.80702776]
[1724678957392,0.1456,63932.0,63931.0,0.83002776]
[1724678957592,0.1456,63932.0,63931.0,0.84102711]
[1724678958085,0.1456,63932.0,63931.0,0.824092]
[1724678958284,0.1456,63932.0,63931.0,0.816092]
[1724678958506,0.1456,63932.0,63931.0,0.167418]
[1724678958711,0.1456,63932.0,63931.0,0.021]
[1724678958712,0.614848,63932.0,63931.0,0.021]
[1724678958889,0.30836912,63932.0,63931.0,0.021]
[1724678959061,0.30836912,63932.0,63931.0,0.011]
[1724678959517,0.30836912,63932.0,63931.0,0.023]
[1724678959718,0.30836912,63932.0,63931.0,0.012]
[1724678960078,0.30146912,63932.0,63931.0,0.012]
[1724678960287,0.30146912,63932.0,63931.0,0.022]
[1724678960488,0.30146912,63932.0,63931.0,0.01]
[1724678960731,0.14505312,63932.0,63931.0,0.018]
[1724678961346,0.14505312,63932.0,63931.0,0.174418]
[1724678961775,0.14505312,63932.0,63931.0,0.96927001]
[1724678961961,0.14505312,63932.0,63931.0,0.500255]
[1724678962161,0.1387,63932.0,63931.0,0.172418]
[1724678962305,0.1387,63932.0,63931.0,0.016]
[1724678962504,0.14505292,63932.0,63931.0,0.172418]
[1724678962941,0.30146892,63932.0,63931.0,0.016]
[1724678963174,0.61430092,63932.0,63931.0,0.016]
[1724678963875,0.30146892,63932.0,63931.0,0.016]
[1724678965643,0.61821164,63932.0,63931.0,0.016]
[1724678966251,0.30537964,63932.0,63931.0,0.016]
[1724678966590,0.30146892,63932.0,63931.0,0.016]
[1724678966981,0.14505292,63932.0,63931.0,0.016]
[1724678967177,0.14505292,63932.0,63931.0,0.016825]
[1724678967305,0.30146892,63932.0,63931.0,0.016825]
[1724678968041,0.93104366,63932.0,63931.0,0.016825]
[1724678968812,0.93104366,63932.0,63931.0,0.008825]
[1724678969014,0.61821166,63932.0,63931.0,0.000825]
[1724678969249,0.61821166,63932.0,63931.0,0.003825]
[1724678969649,0.61802343,63932.0,63931.0,0.001825]
[1724678970070,0.61802343,63932.0,63931.0,0.003825]
[1724678971755,0.93085543,63932.0,63931.0,0.003825]
[1724678971887,0.61802343,63932.0,63931.0,0.003825]
[1724678972091,0.93085543,63932.0,63931.0,0.003825]
[1724678972994,0.93085543,63932.0,63931.0,0.000825]
[1724678973437,0.93185543,63932.0,63931.0,0.000825]
[1724678975748,1.40086544,63932.0,63931.0,0.000825]
[1724678976868,1.50086544,63932.0,63931.0,0.000825]
[1724678977640,1.18803344,63932.0,63931.0,0.000825]
[1724678978271,1.50086544,63932.0,63931.0,0.000825]
[1724678980159,1.18803344,63932.0,63931.0,0.000825]
[1724678980466,1.18894095,63932.0,63931.0,0.000825]
[1724678981029,1.50177295,63932.0,63931.0,0.000825]
[1724678981231,1.18894095,63932.0,63931.0,0.000825]
[1724678982806,1.03276294,63932.0,63931.0,0.000825]
[1724678983013,0.7160202,63932.0,63931.0,0.000825]
[1724678983452,1.0288522,63932.0,63931.0,0.000825]
[1724678988508,1.18503021,63932.0,63931.0,0.000825]
[1724678988933,1.49786221,63932.0,63931.0,0.000825]
[1724678995706,1.18503021,63932.0,63931.0,0.000825]
[1724678996540,1.49786221,63932.0,63931.0,0.000825]
[1724678999310,1.5446475,63932.0,63931.0,0.000825]
[1724679000128,1.2318155,63932.0,63931.0,0.000825]
[1724679000338,0.00826043,63932.0,63931.0,0.157243]
[1724679000549,0.00826043,63932.0,63931.0,0.000825]
[1724679001211,0.00826043,63932.0,63931.0,0.157243]
[1724679001418,0.00826043,63932.0,63931.0,0.948217]
[1724679001830,0.00826043,63932.0,63931.0,0.63538]
[1724679002035,0.00826043,63932.0,63931.0,0.000825]
[1724679002036,0.47750843,63932.0,63931.0,0.000825]
[1724679002245,0.79034043,63932.0,63931.0,0.000825]
[1724679002458,1.40325044,63932.0,63931.0,0.000825]
[1724679002662,1.47357121,63932.0,63931.0,0.000825]
[1724679002872,1.78740321,63932.0,63931.0,0.000825]
[1724679003291,1.78640321,63932.0,63931.0,0.000825]
[1724679003499,1.81608244,63932.0,63931.0,0.000825]
[1724679003708,1.81608244,63932.0,63930.0,0.000825]
[1724679003709,1.551766,63931.0,63930.0,0.000825]
[1724679003911,1.9251453,63931.0,63930.0,0.000825]
[1724679004539,0.002,63927.0,63910.0,0.08]
[1724679004757,1.19625419,63916.0,63898.0,0.0788]
[1724679004965,1.19625419,63916.0,63898.0,0.1389]
[1724679004966,1.71325602,63916.0,63898.0,0.1389]
[1724679005186,1.71325602,63916.0,63898.0,0.0601]
[1724679005187,1.7663422,63916.0,63898.0,0.0601]
[1724679005410,1.7663422,63916.0,63896.0,0.0635]
[1724679005622,2.0792522,63916.0,63896.0,0.0635]
[1724679005836,2.0792522,63916.0,63893.0,0.1]
[1724679005837,2.23538388,63916.0,63893.0,0.1]
[1724679006066,1.241663,63894.0,63893.0,0.1]
[1724679006272,0.313018,63894.0,63893.0,0.1]
[1724679006494,0.782545,63894.0,63893.0,0.1]
[1724679006703,0.156509,63894.0,63893.0,0.1]
[1724679007784,0.312989,63900.0,63893.0,0.106]
[1724679008004,0.156481,63906.0,63898.0,0.1417]
[1724679008214,0.78171999,63907.0,63898.0,0.1417]
[1724679008451,0.312969,63904.0,63894.0,0.46952]
[1724679008682,0.312985,63901.0,63895.0,0.156506]
[1724679008888,0.156497,63899.0,63894.0,0.156507]
[1724679009092,0.1,63906.0,63894.0,0.156507]
[1724679009093,0.1,63906.0,63894.0,0.313017]
[1724679009299,0.312962,63906.0,63893.0,0.106]
[1724679009506,0.312962,63906.0,63893.0,0.1]
[1724679009507,0.156505,63896.0,63893.0,0.1]
[1724679009703,0.26017801,63905.0,63893.0,0.1]
[1724679009704,0.00391292,63895.0,63893.0,0.1]
[1724679009913,0.156497,63899.0,63893.0,0.1]
[1724679010123,0.001,63901.0,63900.0,0.156494]
[1724679010331,0.104,63905.0,63900.0,0.0827]
[1724679010332,0.1,63905.0,63900.0,0.0827]
[1724679010542,0.312934,63912.0,63894.0,0.0827]
[1724679010747,0.312934,63912.0,63893.0,0.1]
[1724679010748,0.004,63906.0,63903.0,0.156484]
[1724679010950,0.412939,63911.0,63902.0,0.156488]
[1724679011155,0.412939,63911.0,63901.0,0.0833]
[1724679011156,0.156473,63909.0,63901.0,0.0833]
[1724679011421,0.156473,63909.0,63904.0,0.156482]
[1724679011671,0.31293,63912.0,63906.0,0.156478]
[1724679012098,0.312909,63917.0,63908.0,0.156474]
[1724679012315,0.156463,63913.0,63908.0,0.156474]
[1724679012595,0.416843,63912.0,63903.0,0.156487]
[1724679012800,0.416843,63912.0,63901.0,0.0833]
[1724679012801,0.31294,63910.0,63902.0,0.156488]
[1724679013010,0.156484,63905.0,63901.0,0.145]
[1724679013219,0.156484,63905.0,63884.0,0.000825]
[1724679013220,0.156501,63898.0,63895.0,0.1404]
[1724679013426,0.156509,63894.0,63888.0,0.1404]
[1724679013837,0.156509,63894.0,63889.0,0.15652]
[1724679014042,0.469527,63894.0,63888.0,0.1404]
[1724679014295,0.547227,63894.0,63884.0,0.31389]
[1724679014513,0.547227,63894.0,63887.0,0.156525]
[1724679014723,0.156506,63896.0,63891.0,0.156515]
[1724679014954,0.0753,63902.0,63893.0,0.1821]
[1724679015176,0.0753,63906.0,63895.0,0.0611]
[1724679015403,0.0753,63906.0,63896.0,0.156503]
[1724679015404,0.31687683,63905.0,63896.0,0.156503]
[1724679015607,0.156499,63898.0,63895.0,0.0611]
[1724679016214,0.156493,63901.0,63897.0,0.1565]
[1724679016456,0.00923976,63904.0,63901.0,0.156489]
[1724679016659,0.00923976,63904.0,63895.0,0.0611]
[1724679016867,0.156489,63903.0,63898.0,0.156498]
[1724679017077,0.00923976,63904.0,63901.0,0.156492]
[1724679017285,0.156493,63901.0,63897.0,0.1565]
[1724679017497,0.16040774,63900.0,63895.0,0.0611]
[1724679017738,0.1565,63898.0,63895.0,0.0611]
[1724679017962,0.156504,63896.0,63895.0,0.017]
[1724679018186,0.469512,63896.0,63895.0,0.017]
[1724679018400,0.469512,63896.0,63895.0,0.008]
[1724679018910,0.549012,63896.0,63895.0,0.015]